bitfinex/quotes_ETHUSD_20241207
["timestamp","ask_amount","ask_price","bid_price","bid_amount"]
[1733592818169,1.75298,3993.2,3992.1,1.15993985]
[1733592818514,0.7896,3993.3,3992.1,1.15993985]
[1733592818827,0.7896,3993.3,3992.3,0.8312]
[1733592819519,2.54255,3993.3,3992.3,0.8312]
[1733592819675,1.75295,3993.3,3992.3,0.8312]
[1733592819870,1.75283,3993.6,3992.3,2.58457]
[1733592820215,1.75289,3993.4,3992.4,0.8312]
[1733592821013,0.7896,3993.8,3992.4,0.8312]
[1733592821211,1.75287,3993.5,3992.4,0.8312]
[1733592821436,0.7896,3993.8,3992.4,0.8312]
[1733592821437,1.75276,3993.7,3992.5,0.8312]
[1733592821618,1.75276,3993.7,3992.6,0.8312]
[1733592821776,1.75276,3993.7,3992.6,1.14461585]
[1733592821977,1.75256,3994.2,3993.2,0.8312]
[1733592821978,1.75257,3994.2,3993.2,0.8312]
[1733592822421,1.75259,3994.1,3993.2,0.8312]
[1733592822979,1.7525,3994.3,3993.2,0.8312]
[1733592825608,1.75255,3994.2,3993.2,0.8312]
[1733592826279,1.75255,3994.2,3993.2,1.32396335]
[1733592826585,1.75249,3994.3,3993.2,1.32396335]
[1733592826897,1.75259,3994.1,3993.2,1.32396335]
[1733592830535,1.63805005,3994.4,3993.2,1.32396335]
[1733592830691,1.75257,3994.2,3993.2,1.32396335]
[1733592831405,1.75257,3994.2,3993.3,0.4770631]
[1733592833434,1.75257,3994.2,3993.4,0.8209]
[1733592833794,1.75237,3994.6,3993.6,0.8209]
[1733592833994,0.84837457,3994.7,3993.6,0.8209]
[1733592834245,0.84837457,3994.7,3993.7,0.8209]
[1733592834398,1.75233,3994.7,3993.8,0.49170635]
[1733592835907,1.75233,3994.7,3993.9,0.8209]
[1733592838056,0.7881,3995.0,3993.9,0.8209]
[1733592838345,1.75225,3994.9,3993.9,0.8209]
[1733592838553,0.7881,3995.0,3993.9,0.8209]
[1733592838902,1.75239,3994.6,3993.9,0.8209]
[1733592839341,1.75227,3994.8,3993.9,0.8209]
[1733592839543,1.75236,3994.7,3993.9,0.8209]
[1733592840447,0.7881,3995.0,3993.9,0.8209]
[1733592840954,1.75223,3994.9,3993.9,0.8209]
[1733592841155,1.75233,3994.7,3993.9,0.8209]
[1733592842740,1.75238,3994.6,3993.9,0.8209]
[1733592843457,1.75242,3994.5,3993.9,0.8209]
[1733592846381,1.04472412,3994.7,3993.9,0.8209]
[1733592846605,3.44161428,3994.7,3993.9,0.8209]
[1733592847241,4.73518563,3994.7,3993.9,0.8209]
[1733592847434,1.29357135,3994.6,3993.9,0.8209]
[1733592847653,4.73518563,3994.7,3993.9,2.34337347]
[1733592847880,1.29357135,3994.6,3994.0,0.7685]
[1733592848240,3.44161428,3994.7,3994.0,0.7685]
[1733592848479,4.73518563,3994.7,3994.0,0.7685]
[1733592848666,1.29414854,3994.6,3994.1,1.08307403]
[1733592849249,3.44161428,3994.7,3994.1,1.08307403]
[1733592849453,4.73576282,3994.7,3994.1,1.08307403]
[1733592849655,1.29414854,3994.6,3994.1,1.08307403]
[1733592849880,3.04651854,3994.6,3994.1,1.08307403]
[1733592850048,1.75237,3994.6,3994.1,1.08307403]
[1733592850240,3.04657432,3994.6,3994.1,1.08307403]
[1733592850441,1.75237,3994.6,3994.1,1.08307403]
[1733592852241,1.29416173,3994.6,3994.1,1.08307403]
[1733592852442,1.68929428,3994.7,3994.1,1.08307403]
[1733592852443,2.98345601,3994.7,3994.1,1.08307403]
[1733592853342,4.73577601,3994.7,3994.1,1.08307403]
[1733592853542,1.29410116,3994.6,3994.1,1.08307403]
[1733592853784,3.44161428,3994.7,3994.1,1.08307403]
[1733592854088,4.73571544,3994.7,3994.1,1.08307403]
[1733592854259,1.29410116,3994.6,3994.1,1.08307403]
[1733592854584,1.04472412,3994.7,3994.1,1.08307403]
[1733592854804,2.33882528,3994.7,3994.1,1.08307403]
[1733592855672,2.33882528,3994.6,3994.1,1.08307403]
[1733592855871,2.33882528,3994.7,3994.1,1.08307403]
[1733592856384,1.29410116,3994.6,3994.1,1.08307403]
[1733592856894,2.33882528,3994.6,3994.1,1.08307403]
[1733592857069,1.04472412,3994.6,3994.1,1.08307403]
[1733592857386,1.29410116,3994.5,3994.1,1.08307403]
[1733592858098,1.04472412,3994.6,3994.1,1.08307403]
[1733592858261,1.29439279,3994.5,3994.1,1.08307403]
[1733592861193,2.33911691,3994.5,3994.1,1.08307403]
[1733592861553,2.33911691,3994.6,3994.1,1.08307403]
[1733592861672,1.29439279,3994.5,3994.1,1.08307403]
[1733592861994,1.29439279,3994.5,3994.0,0.7685]
[1733592862199,1.8602501,3994.5,3994.0,0.7685]
[1733592863098,0.56585731,3994.5,3994.0,0.7685]
[1733592863393,1.75237,3994.6,3994.0,0.7685]
[1733592863903,1.29460193,3994.5,3994.0,0.7685]
[1733592864256,1.29460193,3994.4,3994.0,0.7685]
[1733592864484,1.0438018,3994.5,3994.0,0.7685]
[1733592864686,1.2950465,3994.4,3994.0,0.7685]
[1733592864871,1.0438018,3994.5,3994.0,0.7685]
[1733592865084,1.29503366,3994.4,3994.0,0.7685]
[1733592865292,1.29529297,3994.3,3994.0,0.7685]
[1733592865609,1.0438018,3994.4,3994.0,0.7685]
[1733592866279,1.29528178,3994.3,3994.0,0.7685]
[1733592866487,1.0438018,3994.4,3994.0,0.7685]
[1733592866685,1.29558293,3994.3,3994.0,0.7685]
[1733592866887,1.0438018,3994.4,3994.0,0.7685]
[1733592867086,1.29559029,3994.3,3994.0,0.7685]
[1733592867418,1.0438018,3994.3,3994.0,0.7685]
[1733592868474,1.29594616,3994.2,3994.0,0.7685]
[1733592868692,1.0438018,3994.3,3994.0,0.7685]
[1733592868891,1.29596979,3994.2,3994.0,0.7685]
[1733592869115,1.0438018,3994.3,3994.0,0.7685]
[1733592869413,1.29596762,3994.2,3994.0,0.7685]
[1733592869613,1.0438018,3994.3,3994.0,0.7685]
[1733592869772,1.29602501,3994.2,3994.0,0.7685]
[1733592869971,1.0438018,3994.3,3994.0,0.7685]
[1733592870168,1.29600801,3994.2,3994.0,0.7685]
[1733592870405,1.0438018,3994.3,3994.0,0.7685]
[1733592870622,1.29603706,3994.2,3994.0,0.7685]
[1733592870912,1.0438018,3994.3,3994.0,0.7685]
[1733592871075,1.29603702,3994.2,3994.0,0.7685]
[1733592871276,1.0438018,3994.3,3994.0,0.7685]
[1733592871475,1.29608019,3994.2,3994.0,0.7685]
[1733592871705,1.0438018,3994.3,3994.0,0.7685]
[1733592871894,1.29608392,3994.2,3994.0,0.7685]
[1733592872069,1.0438018,3994.3,3994.0,0.7685]
[1733592872275,1.29608926,3994.2,3994.0,0.7685]
[1733592872481,1.0438018,3994.3,3994.0,0.7685]
[1733592872701,1.2961504,3994.2,3994.0,0.7685]
[1733592872918,1.0438018,3994.3,3994.0,0.7685]
[1733592873080,1.29614933,3994.2,3994.0,0.7685]
[1733592873282,1.0438018,3994.3,3994.0,0.7685]
[1733592873493,1.29624099,3994.2,3994.0,0.7685]
[1733592873820,1.0438018,3994.3,3994.0,0.7685]
[1733592874108,1.2962678,3994.2,3994.0,0.7685]
[1733592874279,1.0438018,3994.3,3994.0,0.7685]
[1733592874484,1.29638255,3994.2,3994.0,0.7685]
[1733592874779,1.0438018,3994.3,3994.0,0.7685]
[1733592874979,1.29635891,3994.2,3994.0,0.7685]
[1733592875176,1.0438018,3994.3,3994.0,0.7685]
[1733592875380,1.29643472,3994.2,3994.0,0.7685]
[1733592875614,1.0438018,3994.3,3994.0,0.7685]
[1733592875915,2.3402348,3994.2,3994.0,0.7685]
[1733592876118,1.0438018,3994.2,3994.0,0.7685]
[1733592876280,1.0438018,3994.3,3994.0,0.7685]
[1733592876476,1.29657012,3994.2,3994.0,0.7685]
[1733592876719,1.0438018,3994.3,3994.0,0.7685]
[1733592876918,1.29657858,3994.2,3994.0,0.7685]
[1733592877240,1.0438018,3994.3,3994.0,0.7685]
[1733592877518,2.34056347,3994.2,3994.0,0.7685]
[1733592877824,1.0438018,3994.2,3994.0,0.7685]
[1733592878284,1.29698311,3994.1,3994.0,0.7685]
[1733592883202,1.0438018,3994.2,3994.0,0.7685]
[1733592891797,1.0375428,3994.2,3994.0,0.7685]
[1733592896402,1.0375428,3994.2,3994.0,1.85157403]
[1733592896598,1.29701275,3994.1,3994.0,1.85157403]
[1733592897400,1.29700568,3994.1,3994.0,1.85157403]
[1733592901102,1.2969155,3994.1,3994.0,1.08307403]
[1733592901902,1.04558167,3994.2,3994.0,1.08307403]
[1733592903165,1.65487484,3994.2,3993.7,1.04920896]
[1733592903458,1.75267,3993.9,3993.5,1.04920896]
[1733592903617,1.75267,3993.9,3993.6,1.08307403]
[1733592904023,1.04558167,3993.7,3993.6,1.08307403]
[1733592904221,2.34197639,3993.7,3993.6,1.08307403]
[1733592904415,1.29639472,3993.7,3993.6,1.08307403]
[1733592904718,2.79825167,3993.9,3993.6,1.08307403]
[1733592904916,1.29619565,3993.8,3993.6,1.08307403]
[1733592905134,2.79825167,3993.9,3993.6,1.08307403]
[1733592905356,1.29620502,3993.8,3993.6,1.08307403]
[1733592905564,1.29603069,3993.7,3993.6,1.08307403]
[1733592906350,3.04879069,3993.7,3993.6,1.08307403]
[1733592907554,3.04879069,3993.7,3993.3,1.08307403]
[1733592907726,3.04879069,3993.7,3992.9,1.85080896]
[1733592907727,1.04558167,3993.8,3992.9,1.85080896]
[1733592907923,1.04558167,3993.8,3993.1,1.08307403]
[1733592907924,1.75285,3993.5,3993.1,1.08307403]
[1733592908461,1.04558167,3993.7,3993.1,1.08307403]
[1733592909879,1.04558167,3993.8,3993.1,1.08307403]
[1733592910034,2.34066139,3993.7,3993.1,1.08307403]
[1733592910230,1.29507972,3993.6,3993.1,1.08307403]
[1733592910433,1.04558167,3993.7,3993.1,1.08307403]
[1733592910660,1.04558167,3993.8,3993.4,1.08307403]
[1733592910942,1.29488447,3993.7,3993.4,1.08307403]
[1733592911156,1.04558167,3993.9,3993.4,1.08307403]
[1733592911361,1.29490245,3993.8,3993.4,1.08307403]
[1733592911586,1.04558167,3993.9,3993.4,1.08307403]
[1733592911956,1.29475423,3993.8,3993.4,1.08307403]
[1733592912129,1.04558167,3993.9,3993.4,1.08307403]
[1733592912330,1.29470591,3993.8,3993.4,1.08307403]
[1733592912622,1.04558167,3993.9,3993.4,1.08307403]
[1733592912861,2.34016461,3993.8,3993.4,1.08307403]
[1733592913027,1.04558167,3993.9,3993.4,1.08307403]
[1733592913231,1.29452683,3993.8,3993.4,1.08307403]
[1733592913464,1.04558167,3993.9,3993.4,1.08307403]
[1733592913927,1.29436824,3993.8,3993.4,1.08307403]
[1733592914128,1.04558167,3993.9,3993.4,1.08307403]
[1733592914365,1.29438628,3993.8,3993.4,1.08307403]
[1733592915166,1.04558167,3993.9,3993.4,1.08307403]
[1733592915469,1.29426268,3993.8,3993.4,1.08307403]
[1733592915675,1.84838167,3994.0,3993.4,1.08307403]
[1733592915965,2.33981792,3993.9,3993.4,1.08307403]
[1733592916133,0.80624668,3993.9,3993.4,1.08307403]
[1733592916566,1.2941355,3993.8,3993.4,1.08307403]
[1733592916765,0.80624668,3993.9,3993.1,1.08307403]
[1733592916988,1.29411287,3993.8,3993.1,1.08307403]
[1733592917148,1.89399087,3993.8,3992.9,0.8016]
[1733592917469,1.89399087,3993.8,3993.1,1.08307403]
[1733592917670,0.8028,3993.7,3993.1,1.08307403]
[1733592917864,0.8028,3993.7,3992.6,1.04920896]
[1733592918033,0.8028,3993.5,3992.5,0.8016]
[1733592918257,0.8028,3993.5,3992.7,1.08307403]
[1733592920079,2.0963145,3993.5,3992.7,1.08307403]
[1733592920873,0.8028,3993.5,3992.7,1.08307403]
[1733592921085,0.8028,3993.5,3993.0,1.08307403]
[1733592923960,1.24767395,3993.5,3992.5,0.8016]
[1733592924165,1.7529,3993.4,3992.6,1.08307403]
[1733592925051,1.24767395,3993.5,3992.6,1.08307403]
[1733592925263,0.8028,3993.5,3992.6,1.08307403]
[1733592925879,0.8028,3993.5,3992.8,1.08307403]
[1733592927453,0.8028,3993.5,3993.0,1.08307403]
[1733592928177,0.8028,3993.5,3992.8,1.08307403]
[1733592929075,0.8028,3993.5,3993.0,1.08307403]
[1733592929290,1.04222057,3993.8,3993.0,1.08307403]
[1733592929450,0.8241,3993.7,3993.0,1.88087403]
[1733592929960,0.8241,3993.7,3993.0,2.24427443]
[1733592932293,0.8241,3993.7,3993.0,0.3634004]
[1733592932506,0.8241,3993.7,3992.7,0.7978]
[1733592933197,1.75285,3993.5,3992.6,1.08307403]
[1733592933356,0.8241,3993.4,3992.6,1.08307403]
[1733592933887,2.577,3993.4,3992.6,1.08307403]
[1733592934094,0.8241,3993.4,3992.6,1.08307403]
[1733592934887,2.57701,3993.4,3992.4,0.7978]
[1733592935187,2.57701,3993.4,3992.4,0.9858874]
[1733592935491,1.75295,3993.3,3992.4,0.9858874]
[1733592936192,1.75295,3993.3,3992.4,0.7978]
[1733592936562,2.3348381,3993.5,3992.0,2.664095]
[1733592936563,0.8241,3993.1,3992.0,2.664095]
[1733592936782,2.3348381,3993.5,3992.0,0.910625]
[1733592936783,0.8241,3993.0,3992.0,0.910625]
[1733592936999,2.57718,3993.0,3992.0,0.910625]
[1733592937196,0.8241,3993.0,3992.0,0.910625]
[1733592937398,1.75311,3992.9,3992.0,0.910625]
[1733592939193,0.8241,3992.8,3992.0,0.910625]
[1733592940821,0.8241,3992.8,3992.0,0.112825]
[1733592940984,2.57727,3992.8,3992.0,0.112825]
[1733592942212,0.8241,3992.8,3992.0,0.112825]
[1733592942392,0.8241,3992.8,3992.0,2.0656949]
[1733592943001,0.8241,3992.8,3992.0,0.3121949]
[1733592943905,0.8241,3992.8,3992.2,1.08307403]
[1733592944320,0.8241,3992.8,3992.2,1.90807403]
[1733592944833,0.8241,3992.8,3992.2,1.08307403]
[1733592946935,0.257713,3992.8,3992.0,0.112825]
[1733592947136,0.804,3992.7,3992.0,0.112825]
[1733592950401,2.30326,3992.6,3992.0,0.112825]
[1733592950708,0.804,3992.5,3992.0,0.112825]
[1733592951311,1.21894806,3992.5,3992.0,0.112825]
[1733592953042,2.97222806,3992.5,3992.0,0.112825]
[1733592953744,2.16822806,3992.5,3992.0,0.112825]
[1733592954042,0.789,3992.4,3992.0,0.112825]
[1733592956752,2.54246,3992.1,3992.0,0.112825]
[1733592957816,0.789,3992.1,3992.0,0.112825]
[1733592958467,0.789,3992.5,3992.0,0.112825]
[1733592971353,1.27675619,3992.5,3992.0,0.112825]
[1733592972553,0.55,3992.4,3992.0,0.112825]
[1733592972725,1.3283,3992.4,3992.0,0.112825]
[1733592973345,0.7783,3992.1,3992.0,0.112825]
[1733592973568,1.3283,3992.1,3992.0,0.112825]
[1733592973736,1.87002064,3992.1,3992.0,0.112825]
[1733592974544,1.3283,3992.1,3992.0,0.112825]
[1733592982570,1.29387481,3992.2,3992.0,0.112825]
[1733592982736,1.04222057,3992.5,3992.1,0.8234]
[1733592982935,1.04222057,3992.6,3992.1,0.8234]
[1733592983144,1.04222057,3992.7,3992.1,0.8234]
[1733592983543,1.04222057,3992.7,3992.1,2.57684]
[1733592983774,1.85382057,3992.8,3992.1,2.8458065]
[1733592983975,1.29398205,3992.7,3992.1,2.8458065]
[1733592984138,1.85382057,3992.8,3992.1,2.8458065]
[1733592984339,1.29398227,3992.7,3992.1,2.8458065]
[1733592984640,1.85382057,3992.8,3992.1,2.8458065]
[1733592984871,1.29399018,3992.7,3992.1,0.8234]
[1733592985083,1.85382057,3992.8,3992.1,0.8234]
[1733592985252,1.29398243,3992.7,3992.1,0.8234]
[1733592985454,1.85382057,3992.8,3992.1,0.8234]
[1733592985783,2.33623634,3992.7,3992.1,0.8234]
[1733592985972,1.04222057,3992.7,3992.1,0.8234]
[1733592986282,1.85382057,3992.8,3992.1,0.8234]
[1733592986586,1.29403861,3992.7,3992.1,1.0923715]
[1733592986885,1.85382057,3992.8,3992.1,1.0923715]
[1733592987045,1.29406077,3992.7,3992.1,1.0923715]
[1733592987247,1.85382057,3992.8,3992.1,1.0923715]
[1733592987546,1.29402986,3992.7,3992.1,1.0923715]
[1733592987749,1.29403346,3992.6,3992.1,0.8234]
[1733592987974,1.04222057,3992.7,3992.1,0.8234]
[1733592988170,1.29401754,3992.6,3992.1,0.8234]
[1733592988448,1.29403298,3992.6,3992.1,0.8234]
[1733592988879,1.04222057,3992.7,3992.1,0.8234]
[1733592989968,1.29410509,3992.6,3992.1,0.8234]
[1733592990286,1.04222057,3992.7,3992.1,0.8234]
[1733592990473,1.29387447,3992.6,3992.1,2.57685]
[1733592990676,1.04222057,3992.7,3992.1,0.8234]
[1733592990879,1.2937819,3992.6,3992.1,0.8234]
[1733592991050,1.04222057,3992.7,3992.1,0.8234]
[1733592991252,1.29378318,3992.6,3992.1,0.8234]
[1733592991452,1.04222057,3992.7,3992.1,0.8234]
[1733592991689,1.29381201,3992.6,3992.1,0.8234]
[1733592991883,1.29374189,3992.5,3992.1,0.8234]
[1733592992081,1.04222057,3992.6,3992.1,0.8234]
[1733592992261,1.2937273,3992.5,3992.1,0.8234]
[1733592992451,1.04222057,3992.6,3992.1,0.8234]
[1733592992786,1.29383355,3992.5,3992.1,2.57686]
[1733592993000,1.04222057,3992.6,3992.1,2.57686]
[1733592993206,1.29383929,3992.5,3992.1,2.57686]
[1733592993502,1.04222057,3992.6,3992.1,2.57686]
[1733592993699,1.29387446,3992.5,3992.1,2.57686]
[1733592994004,1.04222057,3992.6,3992.1,2.57686]
[1733592994201,1.29380959,3992.5,3992.1,2.57686]
[1733592994395,1.04222057,3992.6,3992.1,2.57686]
[1733592994908,1.29383289,3992.5,3992.1,2.57686]
[1733592995197,1.04222057,3992.6,3992.1,2.57686]
[1733592995505,2.93628823,3992.9,3992.1,0.8234]
[1733592995506,2.33599972,3992.5,3992.1,0.8234]
[1733592995797,1.04222057,3992.6,3992.1,0.8234]
[1733592995999,1.5657027,3992.7,3992.1,0.8234]
[1733592996000,2.3360176,3992.5,3992.1,0.8234]
[1733592996304,1.29379703,3992.4,3992.1,0.8234]
[1733592996508,1.04222057,3992.5,3992.1,0.8234]
[1733592996669,1.29380541,3992.4,3992.1,0.8234]
[1733592996865,1.04222057,3992.5,3992.1,0.8234]
[1733592997104,1.29375044,3992.4,3992.1,0.8234]
[1733592997302,1.04222057,3992.5,3992.1,0.8234]
[1733592997609,1.29371917,3992.4,3992.1,0.8234]
[1733592997769,1.04222057,3992.5,3992.1,0.8234]
[1733592997966,1.29380009,3992.4,3992.1,0.8234]
[1733592998160,1.04222057,3992.5,3992.1,0.8234]
[1733592998489,1.29378864,3992.4,3992.1,0.8234]
[1733592998691,1.04222057,3992.5,3992.1,0.8234]
[1733592998990,1.29377595,3992.4,3992.1,0.8234]
[1733592999197,1.04222057,3992.5,3992.1,2.57685]
[1733592999507,1.29376332,3992.4,3992.1,2.57685]
[1733592999706,1.04222057,3992.5,3992.1,2.57685]
[1733592999875,1.2937779,3992.4,3992.1,2.57685]
[1733593000078,1.04222057,3992.5,3992.1,2.57685]
[1733593000290,1.29376416,3992.4,3992.1,2.57685]
[1733593000509,1.04222057,3992.5,3992.1,2.57685]
[1733593000816,1.2937621,3992.4,3992.1,2.57685]
[1733593001110,1.04222057,3992.5,3992.1,2.57685]
[1733593001313,1.29378092,3992.4,3992.1,2.57685]
[1733593001511,1.04222057,3992.5,3992.1,2.57685]
[1733593001679,1.29377328,3992.4,3992.1,2.57685]
[1733593001873,1.04222057,3992.5,3992.1,2.57685]
[1733593002079,1.29380899,3992.4,3992.1,2.57685]
[1733593002279,1.04222057,3992.5,3992.1,2.57685]
[1733593002509,1.29381344,3992.4,3992.1,2.57685]
[1733593002676,1.04222057,3992.5,3992.1,2.57685]
[1733593003019,1.29383117,3992.4,3992.1,2.57685]
[1733593003197,1.04222057,3992.5,3992.1,2.57685]
[1733593003398,1.29388633,3992.4,3992.1,2.57685]
[1733593003712,1.04222057,3992.5,3992.1,2.57685]
[1733593003915,1.29395709,3992.4,3992.1,2.57685]
[1733593004121,1.04222057,3992.5,3992.1,0.8234]
[1733593004414,1.29395708,3992.4,3992.1,0.8234]
[1733593004611,1.04222057,3992.5,3992.1,0.8234]
[1733593004787,1.29399417,3992.4,3992.1,0.8234]
[1733593004991,1.04222057,3992.5,3992.1,0.8234]
[1733593005191,1.29417289,3992.4,3992.1,0.8234]
[1733593005395,1.04222057,3992.5,3992.1,0.8234]
[1733593005638,1.29429416,3992.4,3992.1,0.8234]
[1733593005920,1.3030129,3992.5,3992.1,0.8234]
[1733593006106,1.29445176,3992.4,3992.1,0.8234]
[1733593006306,1.04222057,3992.5,3992.1,0.8234]
[1733593006505,1.29451892,3992.4,3992.1,0.8234]
[1733593006733,1.04222057,3992.5,3992.1,0.8234]
[1733593006883,1.3030129,3992.5,3992.1,0.8234]
[1733593007077,1.29457994,3992.4,3992.1,0.8234]
[1733593007413,1.3030129,3992.5,3992.1,0.8234]
[1733593007621,1.29460268,3992.4,3992.1,0.8234]
[1733593007782,1.3030129,3992.5,3992.1,0.8234]
[1733593007995,1.29457215,3992.4,3992.1,0.8234]
[1733593008202,1.3030129,3992.5,3992.1,0.8234]
[1733593008904,1.2950596,3992.4,3992.1,0.8234]
[1733593009241,1.3030129,3992.5,3992.1,0.8234]
[1733593009447,1.29527288,3992.4,3992.1,0.8234]
[1733593009613,1.3030129,3992.5,3992.1,0.8234]
[1733593009819,1.29524874,3992.4,3992.1,0.8234]
[1733593010014,1.3030129,3992.5,3992.1,0.8234]
[1733593010214,1.29556996,3992.4,3992.1,0.8234]
[1733593010414,1.04222057,3992.4,3992.1,0.8234]
[1733593010850,1.29564539,3992.3,3992.1,0.8234]
[1733593011047,1.04222057,3992.4,3992.1,0.8234]
[1733593011420,1.3030129,3992.5,3992.1,0.8234]
[1733593011615,1.29575554,3992.4,3992.1,0.8234]
[1733593011833,1.3030129,3992.5,3992.1,0.8234]
[1733593012015,1.29578826,3992.4,3992.1,0.8234]
[1733593012213,1.3030129,3992.5,3992.1,0.8234]
[1733593012412,1.2957098,3992.4,3992.1,0.8234]
[1733593012630,0.8105,3992.3,3992.0,0.112825]
[1733593012829,1.04222057,3992.5,3992.0,0.112825]
[1733593013027,1.29548114,3992.4,3992.0,0.112825]
[1733593013360,1.04222057,3992.5,3992.0,0.112825]
[1733593013564,1.29553313,3992.4,3992.0,0.112825]
[1733593013858,1.04222057,3992.5,3992.0,0.112825]
[1733593014060,1.04222057,3992.5,3992.1,0.8058]
[1733593014212,1.04222057,3992.6,3992.2,0.8058]
[1733593014413,1.04222057,3992.7,3992.2,0.8058]
[1733593014647,1.04222057,3992.8,3992.2,0.8058]
[1733593015317,1.29558379,3992.7,3992.2,0.8058]
[1733593015553,1.04222057,3992.8,3992.2,0.8058]
[1733593015754,1.29548422,3992.7,3992.2,0.8058]
[1733593015925,1.04222057,3992.8,3992.2,0.8058]
[1733593016475,0.84869071,3992.9,3992.2,0.8058]
[1733593016476,2.3377609,3992.7,3992.2,0.8058]
[1733593016677,1.04222057,3992.8,3992.2,0.8058]
[1733593016838,2.3377632,3992.7,3992.2,0.8058]
[1733593017046,1.04222057,3992.7,3992.2,0.8058]
[1733593017427,1.29553563,3992.6,3992.2,0.8058]
[1733593017627,1.04222057,3992.7,3992.2,0.8058]
[1733593017828,1.29550367,3992.6,3992.2,0.8058]
[1733593018028,1.29548885,3992.5,3992.0,0.112825]
[1733593018271,1.04222057,3992.5,3992.0,0.112825]
[1733593018422,1.29541505,3992.4,3992.0,0.112825]
[1733593018629,0.8105,3992.4,3992.0,0.112825]
[1733593019318,1.84541331,3992.3,3992.0,0.112825]
[1733593019443,0.55,3992.3,3992.0,0.112825]
[1733593019644,3.34559057,3992.3,3992.0,0.112825]
[1733593019831,0.55,3992.1,3992.0,0.112825]
[1733593020466,1.84538587,3992.1,3992.0,0.112825]
[1733593020661,3.59884587,3992.1,3992.0,0.112825]
[1733593020867,4.64106644,3992.1,3992.0,0.112825]
[1733593021245,3.59884587,3992.1,3992.0,0.112825]
[1733593021452,2.71323016,3992.1,3992.0,0.112825]
[1733593021931,2.71332657,3992.1,3992.0,0.112825]
[1733593022534,4.27902927,3992.1,3992.0,0.112825]
[1733593022972,2.71332657,3992.1,3992.0,0.112825]
[1733593023477,4.27902927,3992.1,3992.0,0.112825]
[1733593023846,2.71332657,3992.1,3992.0,0.112825]
[1733593024067,4.27902927,3992.1,3992.0,0.112825]
[1733593024266,2.71332657,3992.1,3992.0,0.112825]
[1733593025035,3.75732409,3992.1,3992.0,0.112825]
[1733593025487,2.71332657,3992.1,3992.0,0.112825]
[1733593026364,2.88955861,3992.1,3992.0,0.112825]
[1733593026737,1.84548228,3992.1,3992.0,0.112825]
[1733593026955,2.88963672,3992.1,3992.0,0.112825]
[1733593027667,1.84548228,3992.1,3992.0,0.112825]
[1733593028495,2.88974492,3992.1,3992.0,0.112825]
[1733593028648,4.57121448,3992.1,3992.0,0.112825]
[1733593029093,5.61549459,3992.1,3992.0,0.112825]
[1733593029387,5.61537871,3992.1,3992.0,0.112825]
[1733593029759,4.57121448,3992.1,3992.0,0.112825]
[1733593030631,5.61527694,3992.1,3992.0,0.112825]
[1733593030893,3.86181387,3992.1,3992.0,0.112825]
[1733593031550,3.86097863,3992.1,3992.0,0.112825]
[1733593032661,2.81691924,3992.1,3992.0,0.112825]
[1733593032868,2.88828938,3992.1,3992.0,0.112825]
[1733593033161,1.84464704,3992.1,3992.0,0.112825]
[1733593033696,1.04364234,3992.6,3992.0,0.112825]
[1733593033852,1.04364234,3992.7,3992.1,0.7624]
[1733593034186,2.3381041,3992.6,3992.1,0.7624]
[1733593034493,1.29446176,3992.5,3992.1,0.7624]
[1733593035055,0.55,3992.5,3992.1,0.7624]
[1733593035504,1.29432315,3992.4,3992.0,0.112825]
[1733593035995,1.04364234,3992.4,3992.0,0.112825]
[1733593036194,1.29431658,3992.3,3992.0,0.112825]
[1733593036403,1.84437011,3992.3,3992.0,0.112825]
[1733593037822,0.55,3992.3,3992.0,0.112825]
[1733593038374,1.59364234,3992.3,3992.0,0.112825]
[1733593038607,0.55,3992.3,3992.0,0.112825]
[1733593038820,1.59364234,3992.3,3992.0,0.112825]
[1733593039193,0.55,3992.3,3992.0,0.112825]
[1733593039413,1.84482478,3992.3,3992.0,0.112825]
[1733593040425,0.55,3992.3,3992.0,0.112825]
[1733593040578,2.8886186,3992.4,3992.0,0.112825]
[1733593040925,1.59364234,3992.4,3992.0,0.112825]
[1733593041220,1.29506976,3992.3,3992.0,0.112825]
[1733593041427,3.34697234,3992.4,3992.0,0.112825]
[1733593041580,1.29507927,3992.3,3992.0,0.112825]
[1733593041779,2.45173543,3992.3,3992.0,0.112825]
[1733593042057,1.2951001,3992.2,3992.0,0.112825]
[1733593042256,3.49537777,3992.3,3992.0,0.112825]
[1733593042451,1.29505023,3992.2,3992.0,0.112825]
[1733593042727,1.04364234,3992.2,3992.0,0.112825]
[1733593043448,3.65206805,3992.1,3992.0,0.112825]
[1733593043843,4.94676151,3992.1,3992.0,0.112825]
[1733593044049,4.94677001,3992.1,3992.0,0.112825]
[1733593044584,1.3375,3992.1,3992.0,0.112825]
[1733593044751,2.33827859,3992.1,3992.0,0.938225]
[1733593045285,1.5657027,3992.3,3992.0,0.938225]
[1733593045286,1.29463625,3992.2,3992.0,0.938225]
[1733593045491,1.04364234,3992.3,3992.0,0.938225]
[1733593045652,1.29463697,3992.2,3992.0,0.938225]
[1733593045859,1.04364234,3992.3,3992.0,0.938225]
[1733593046057,1.29465518,3992.2,3992.0,0.938225]
[1733593046242,1.04364234,3992.3,3992.0,0.938225]
[1733593046442,1.29467097,3992.2,3992.0,0.938225]
[1733593046763,1.04364234,3992.3,3992.0,0.112825]
[1733593047095,1.29466117,3992.2,3992.0,0.112825]
[1733593047257,1.04364234,3992.3,3992.0,0.112825]
[1733593047585,1.29467916,3992.2,3992.0,0.112825]
[1733593047885,1.04364234,3992.3,3992.0,0.112825]
[1733593048075,1.29465835,3992.2,3992.0,0.112825]
[1733593048274,1.04364234,3992.3,3992.0,0.112825]
[1733593048469,1.2946685,3992.2,3992.0,0.112825]
[1733593048640,1.04364234,3992.3,3992.0,0.112825]
[1733593048841,2.33830627,3992.2,3992.0,0.112825]
[1733593049071,1.04364234,3992.2,3992.0,0.112825]
[1733593050651,1.04364234,3992.3,3992.0,0.112825]
[1733593050844,1.29474998,3992.2,3992.0,0.112825]
[1733593051080,1.04364234,3992.3,3992.0,0.112825]
[1733593051383,2.33836986,3992.2,3992.0,0.112825]
[1733593051691,1.04364234,3992.3,3992.0,0.112825]
[1733593052004,1.29468259,3992.2,3992.0,0.112825]
[1733593052187,1.04364234,3992.2,3992.0,0.112825]
[1733593052383,1.04364234,3992.3,3992.0,0.112825]